[Event "Czech Youth U12 Boys 2024"]
[Site "Kouty nad Desnou"]
[Date "2024.03.11"]
[Round "4.12"]
[White "Hanzel, Martin"]
[Black "Broz, Pavel"]
[Result "1-0"]
[ECO "C55"]
[WhiteElo "1474"]
[BlackElo "1911"]
[Annotator "RC"]
[PlyCount "59"]
[EventDate "2024.03.10"]
[EventType "swiss"]
[EventCountry "CZE"]
[SourceTitle "playchess.com"]
[Source "ChessBase"]
[SourceQuality "1"]
[TimeControl "40/5400+30:1800+30"]

1. e4 {[%emt 0:00:02]} e5 {[%emt 0:00:41]} 2. Nf3 {[%emt 0:00:14]} Nc6 {[%emt 0:01:44]} 3. d4 {[%emt 0:00:18]} exd4 {[%emt 0:02:49]} 4. Bc4 {[%emt 0:00:28]} Nf6 {[%emt 0:05:46]} 5. e5 {[%emt 0:01:47]} Ne4 {[%emt 0:02:16]} 6. c3 {[%emt 0:00:23]} dxc3 {[%emt 0:02:12]} 7. Qd5 {[%emt 0:00:29]} Qe7 {[%emt 0:01:56]} 8. Qxe4 {[%emt 0:00:26]} c2 {[%emt 0:00:44]} 9. Na3 {[%emt 0:03:31]} d6 {[%emt 0:01:44]} 10. Bf4 {[%emt 0:02:41]} f5 {[%emt 0:00:55]} 11. Qe3 {[%emt 0:00:50]} dxe5 {[%emt 0:00:25]} 12. Nxe5 {[%emt 0:01:07]} Nxe5 {[%emt 0:00:35]} 13. Bxe5 {[%emt 0:00:47]} Be6 {[%emt 0:04:51]} 14. Bxe6 {[%emt 0:00:47]} Qxe6 {[%emt 0:00:19]} 15. Nxc2 {[%emt 0:00:25]} O-O-O {[%emt 0:00:51]} 16. O-O {[%emt 0:00:37]} b6 {[%emt 0:10:28]} 17. Nd4 {[%emt 0:00:26]} Qd5 {[%emt 0:04:43]} 18. Nxf5 {[%emt 0:02:14]} Re8 {[%emt 0:02:11]} 19. Rfe1 {[%emt 0:00:47]} Bc5 {[%emt 0:01:09]} 20. Qh3 {[%emt 0:03:01]} Kb8 {[%emt 0:10:21]} 21. Bxg7 {[%emt 0:01:30]} Qd2 {[%emt 0:03:47]} 22. Ne3 {[%emt 0:01:39]} Rhg8 {[%emt 0:01:19]} 23. Bc3 {[%emt 0:00:47]} Qd3 {[%emt 0:03:32]} 24. Qf5 {[%emt 0:02:25]} Qxf5 {[%emt 0:00:19]} 25. Nxf5 {[%emt 0:00:30]} Ref8 {[%emt 0:00:23]} 26. Nd4 {[%emt 0:01:10]} Rf7 {[%emt 0:05:29]} 27. Re2 {[%emt 0:01:28]} h5 {[%emt 0:02:22]} 28. Rae1 {[%emt 0:00:33]} Rg4 {[%emt 0:01:29]} 29. Nc6+ {[%emt 0:01:12]} Kc8 {[%emt 0:02:01]} 30. Ne5 {[%emt 0:00:15]} 1-0

[Event "Czech Youth U12 Boys 2024"]
[Site "Kouty nad Desnou"]
[Date "2024.03.12"]
[Round "5.1"]
[White "Honcharov, Makar"]
[Black "Policar, Martin"]
[Result "1-0"]
[ECO "B40"]
[WhiteElo "1872"]
[BlackElo "1758"]
[Annotator "NA RC"]
[PlyCount "61"]
[EventDate "2024.03.10"]
[EventType "swiss"]
[EventCountry "CZE"]
[SourceTitle "playchess.com"]
[Source "ChessBase"]
[SourceQuality "1"]
[TimeControl "40/5400+30:1800+30"]

1. e4 {[%emt 0:00:21]} c5 {[%emt 0:00:05]} 2. Nf3 {[%emt 0:00:06]} e6 {[%emt 0:00:25]} 3. b4 {[%emt 0:00:10]} cxb4 {[%emt 0:01:29]} 4. a3 {[%emt 0:00:09]} bxa3 {[%emt 0:10:47]} 5. d4 {[%emt 0:00:31]} d5 {[%emt 0:07:38]} 6. e5 {[%emt 0:00:04]} Bd7 {[%emt 0:02:37] C00: French: Unusual White 2nd moves.} 7. Nxa3 {[%emt 0:01:09]} Qb6 {[%emt 0:07:18]} ({Better is} 7... Nc6 $11) 8. Bd3 {[%emt 0:00:38]} Nc6 {[%emt 0:04:52]} 9. c3 {[%emt 0:01:02]} f6 {[%emt 0:06:27]} (9... Na5 $11) 10. O-O {[%emt 0:00:35]} g6 {[%emt 0:12:43]} (10... a6 $16 {was necessary.}) 11. Nb5 {[%emt 0:01:15]} (11. c4 $18) 11... Nxe5 $2 {[%emt 0:01:48]} 12. dxe5 {[%emt 0:03:11]} Bxb5 {[%emt 0:00:45] [#]} 13. Qb3 $1 {[%emt 0:00:05]} Ba6 {[%emt 0:01:53]} 14. Qa4+ {[%emt 0:00:33]} Kd8 {[%emt 0:04:48]} (14... Kf7 $142 15. Rb1 Qc7) 15. Rb1 {[%emt 0:04:00]} Qc7 {[%emt 0:02:05]} 16. Bxa6 {[%emt 0:00:18]} bxa6 {[%emt 0:00:30]} 17. Qxa6 {[%emt 0:00:22]} Rb8 {[%emt 0:00:19]} 18. Rxb8+ {[%emt 0:00:38]} Qxb8 {[%emt 0:00:07]} 19. Qxe6 {[%emt 0:00:11]} Qb7 {[%emt 0:05:31]} 20. Rd1 {[%emt 0:00:20]} Be7 {[%emt 0:00:08]} 21. c4 {[%emt 0:10:56]} Qb3 {[%emt 0:01:29]} 22. Rxd5+ {[%emt 0:01:23]} Ke8 {[%emt 0:00:19]} 23. c5 $18 {[%emt 0:00:43]} (23. exf6 $142 Qb6 24. Qd7+ (24. f7+ Kf8 25. fxg8=Q+ Rxg8 26. Bh6+ Rg7 27. Bxg7+ Kxg7 28. Qxe7+ Kg8 29. Ne1 Qb8 30. Rd7 Qxh2+ 31. Kxh2 Kh8 32. Qxh7#) 24... Kf7 25. fxe7 Nxe7 26. Ne5+ Kf6 27. Rd6+ Qxd6 28. Qxd6+ Kf5 29. g4+ Ke4 30. f3#) 23... Qc2 {[%emt 0:03:15]} 24. Qd7+ {[%emt 0:00:37]} Kf8 {[%emt 0:01:00]} 25. Be3 {[%emt 0:00:06]} fxe5 26. c6 {[%emt 0:01:56]} Kf7 {[%emt 0:04:35]} 27. c7 {[%emt 0:01:24]} Nh6 {[%emt 0:01:20]} 28. Ng5+ {[%emt 0:00:17]} Kg7 {[%emt 0:01:09]} 29. Qxe7+ {[%emt 0:00:06]} Nf7 {[%emt 0:00:03]} 30. Ne6+ {[%emt 0:00:10]} Kg8 31. Qf8# 1-0

[Event "Czech Youth U12 Boys 2024"]
[Site "Kouty nad Desnou"]
[Date "2024.03.12"]
[Round "5.2"]
[White "Artamonov, Mikhail"]
[Black "Kolar, Edvard"]
[Result "1-0"]
[ECO "B50"]
[WhiteElo "1727"]
[BlackElo "1759"]
[Annotator "NA RC"]
[PlyCount "103"]
[EventDate "2024.03.10"]
[EventType "swiss"]
[EventCountry "CZE"]
[SourceTitle "playchess.com"]
[Source "ChessBase"]
[SourceQuality "1"]
[TimeControl "40/5400+30:1800+30"]

1. e4 {[%emt 0:01:12]} c5 {[%emt 0:00:04]} 2. Nf3 {[%emt 0:01:15]} d6 {[%emt 0:00:11]} 3. d3 {[%emt 0:01:02]} Nc6 {[%emt 0:00:38]} 4. g3 {[%emt 0:00:23]} e5 {[%emt 0:00:26]} 5. Bg2 {[%emt 0:00:54]} g6 {[%emt 0:00:23]} 6. O-O {[%emt 0:01:27]} Bg7 {[%emt 0:00:29]} 7. Nc3 {[%emt 0:01:51]} Nge7 {[%emt 0:01:34]} 8. Nd2 {[%emt 0:02:42]} O-O {[%emt 0:01:17]} 9. Nc4 {[%emt 0:01:00]} a6 {[%emt 0:02:52]} 10. a4 {[%emt 0:02:11]} f5 {[%emt 0:02:19]} 11. f4 {[%emt 0:03:25]} Be6 {[%emt 0:03:21]} 12. Nd5 {[%emt 0:02:34]} Rb8 {[%emt 0:05:02]} 13. a5 {[%emt 0:00:27]} Bxd5 {[%emt 0:05:06]} 14. exd5 {[%emt 0:00:35]} Nd4 {[%emt 0:07:14]} 15. Re1 {[%emt 0:03:35]} Re8 {[%emt 0:08:13]} 16. c3 {[%emt 0:04:59]} Nb5 {[%emt 0:02:16]} 17. fxe5 {[%emt 0:01:20]} dxe5 {[%emt 0:02:01]} 18. Nxe5 {[%emt 0:03:28]} Nxd5 {[%emt 0:02:04]} 19. Bg5 {[%emt 0:03:26]} Qd6 {[%emt 0:07:40]} 20. c4 {[%emt 0:01:06]} Nb4 {[%emt 0:03:06]} 21. cxb5 {[%emt 0:00:28]} Bxe5 {[%emt 0:02:04]} 22. Qb3+ {[%emt 0:01:32]} Kh8 {[%emt 0:01:13]} 23. Kh1 {[%emt 0:04:36]} Nxd3 {[%emt 0:03:07]} 24. Re2 {[%emt 0:01:19]} Bg7 {[%emt 0:16:58]} 25. Rd2 {[%emt 0:01:13]} c4 {[%emt 0:01:39]} 26. Qxc4 {[%emt 0:06:57]} Ne5 {[%emt 0:20:39]} 27. Qb3 {[%emt 0:01:51]} Qe6 {[%emt 0:01:30]} 28. Bd5 {[%emt 0:00:59]} Qc8 {[%emt 0:00:28]} 29. Rc2 {[%emt 0:02:22]} Qd7 {[%emt 0:00:32]} 30. b6 {[%emt 0:00:49]} Rbc8 {[%emt 0:00:32]} 31. Rxc8 {[%emt 0:00:24]} Rxc8 {[%emt 0:00:28]} 32. Rd1 {[%emt 0:02:22]} Qe8 {[%emt 0:00:32]} 33. Bxb7 {[%emt 0:00:41]} Rb8 {[%emt 0:00:28]} 34. Qd5 {[%emt 0:02:55]} Ng4 {[%emt 0:00:13]} 35. Qf3 {[%emt 0:01:17]} Rxb7 36. Rd8 {[%emt 0:00:07]} Rb8 {[%emt 0:00:17]} 37. Rxe8+ {[%emt 0:00:16]} Rxe8 {[%emt 0:00:04]} 38. h3 {[%emt 0:01:40]} Ne5 {[%emt 0:00:23]} 39. Qe2 {[%emt 0:02:14]} h6 {[%emt 0:00:25]} 40. Bd2 {[%emt 0:02:00]} Rd8 {[%emt 0:00:29]} 41. Bc3 {[%emt 0:31:28]} Nc6 {[%emt 0:30:59]} 42. Qf3 {[%emt 0:01:35]} Ne5 {[%emt 0:00:29]} 43. Qb7 {[%emt 0:01:06]} g5 {[%emt 0:01:11]} 44. Qe7 {[%emt 0:00:36]} Rd5 {[%emt 0:00:40]} 45. b7 {[%emt 0:00:50]} f4 {[%emt 0:00:53]} 46. b8=Q+ {[%emt 0:00:10]} Kh7 {[%emt 0:00:13]} 47. Qbxe5 {[%emt 0:00:53]} Rd1+ {[%emt 0:00:47]} 48. Be1 {[%emt 0:00:20]} Rxe1+ {[%emt 0:00:09]} 49. Qxe1 {[%emt 0:00:06]} f3 {[%emt 0:00:05]} 50. Q1e4+ {[%emt 0:00:13]} Kh8 {[%emt 0:00:13]} 51. Qe8+ {[%emt 0:00:08]} Bf8 {[%emt 0:00:19]} 52. Qxf8# 1-0

[Event "Czech Youth U12 Boys 2024"]
[Site "Kouty nad Desnou"]
[Date "2024.03.12"]
[Round "5.3"]
[White "Velim, Vojtech"]
[Black "Zrust, Lukas"]
[Result "1/2-1/2"]
[ECO "A04"]
[WhiteElo "1889"]
[BlackElo "1893"]
[Annotator "NA RC"]
[PlyCount "129"]
[EventDate "2024.03.10"]
[EventType "swiss"]
[EventCountry "CZE"]
[SourceTitle "playchess.com"]
[Source "ChessBase"]
[SourceQuality "1"]
[TimeControl "40/5400+30:1800+30"]

1. Nf3 {[%emt 0:00:04]} g6 {[%emt 0:00:20]} 2. c4 {[%emt 0:00:10]} Bg7 {[%emt 0:00:05]} 3. Nc3 {[%emt 0:00:05]} d6 {[%emt 0:00:14]} 4. e4 {[%emt 0:00:30]} e5 {[%emt 0:00:52]} 5. d4 {[%emt 0:01:39]} exd4 {[%emt 0:01:39]} 6. Nxd4 {[%emt 0:00:29]} Nf6 {[%emt 0:02:32]} 7. Be2 {[%emt 0:02:41]} O-O {[%emt 0:01:15]} 8. Be3 {[%emt 0:03:15]} a5 {[%emt 0:02:14] E92: King's Indian: Classical: 6 Be2 e5: 7 dxe5, 7 Be3 and Petrosian System without 7...Nbd7.} 9. f3 {[%emt 0:17:13]} c6 {[%emt 0:09:14]} 10. O-O {[%emt 0:01:37]} Re8 {[%emt 0:03:34]} 11. Nc2 {[%emt 0:11:54]} (11. Qd2 $142) 11... Na6 {[%emt 0:10:24]} 12. Qd2 {[%emt 0:04:01]} Qe7 {[%emt 0:04:08]} (12... Bf8 $14 {feels stronger.}) 13. Rfd1 {[%emt 0:06:59]} ({White should try} 13. Bf4 $16) 13... Nb4 {[%emt 0:04:54]} 14. a3 {[%emt 0:10:15]} Nxc2 {[%emt 0:00:30]} 15. Qxc2 {[%emt 0:00:07]} Rd8 {[%emt 0:13:48]} (15... Nd7 $11) 16. Bb6 {[%emt 0:02:15]} Re8 {[%emt 0:05:21]} 17. Bf2 {[%emt 0:09:23]} Nh5 {[%emt 0:06:11]} 18. Qd2 {[%emt 0:03:12]} Rd8 {[%emt 0:05:44]} ({Black should play} 18... Be5 $14) 19. Bd4 {[%emt 0:13:34]} ({White should try} 19. Bb6 $16) 19... Bxd4+ {[%emt 0:04:15]} 20. Qxd4 {[%emt 0:00:10]} Ng7 {[%emt 0:05:22]} 21. b4 {[%emt 0:03:48]} axb4 {[%emt 0:01:42]} 22. axb4 {[%emt 0:00:11]} Rxa1 {[%emt 0:01:25]} 23. Rxa1 {[%emt 0:00:09]} f5 {[%emt 0:02:42]} 24. Rd1 {[%emt 0:01:57]} fxe4 {[%emt 0:01:02]} 25. Nxe4 {[%emt 0:00:28]} Nf5 {[%emt 0:01:20]} 26. Qf6 {[%emt 0:02:00]} (26. Qd2 $14) 26... Qxf6 {[%emt 0:01:07]} 27. Nxf6+ {[%emt 0:00:09]} Kg7 {[%emt 0:00:18]} 28. Ne4 {[%emt 0:01:36]} d5 {[%emt 0:06:43]} 29. cxd5 {[%emt 0:02:05]} cxd5 {[%emt 0:00:13]} 30. Kf2 {[%emt 0:00:33]} d4 {[%emt 0:02:12]} (30... b6 $11 {feels stronger.}) 31. Bd3 {[%emt 0:00:59]} Nd6 {[%emt 0:02:15]} 32. Rc1 {[%emt 0:00:41]} Nxe4+ {[%emt 0:01:03]} 33. Bxe4 {[%emt 0:00:12]} b6 {[%emt 0:01:21]} 34. Rc7+ {[%emt 0:00:21]} Kh6 {[%emt 0:00:40] [#]} (34... Kf6 $16) 35. Bd3 {[%emt 0:01:03]} (35. Ke2 $1 $18) 35... Bf5 {[%emt 0:00:47]} 36. Bxf5 {[%emt 0:00:25]} gxf5 {[%emt 0:00:00]} 37. Rc6+ {[%emt 0:00:11]} Kg5 {[%emt 0:00:02]} 38. g3 {[%emt 0:01:49]} d3 {[%emt 0:01:02]} 39. Ke1 {[%emt 0:00:30]} f4 {[%emt 0:00:39]} (39... d2+ $14 40. Kd1 Rd3 (40... b5 41. h4+ Kh5 42. Rc5 $14)) 40. g4 {[%emt 0:00:24]} d2+ {[%emt 0:00:11]} 41. Kd1 {[%emt 0:30:06]} Rd3 {[%emt 0:30:26]} 42. Rxb6 {[%emt 0:00:46]} Rxf3 {[%emt 0:00:13]} 43. Kxd2 {[%emt 0:01:20]} Rf2+ {[%emt 0:00:25]} 44. Ke1 $2 {[%emt 0:00:29]} (44. Kd3 $11) 44... Rxh2 {[%emt 0:00:14]} 45. b5 {[%emt 0:00:11]} Kxg4 {[%emt 0:00:25]} 46. Rf6 {[%emt 0:00:21]} Rb2 {[%emt 0:00:09]} 47. Rh6 $19 {[%emt 0:00:41]} Rb1+ {[%emt 0:00:48]} 48. Kf2 {[%emt 0:00:25]} Rb2+ {[%emt 0:00:13]} 49. Kf1 {[%emt 0:00:33]} Kg3 {[%emt 0:01:16]} 50. Rxh7 {[%emt 0:00:33]} Rb1+ {[%emt 0:00:13]} 51. Ke2 {[%emt 0:00:05]} f3+ {[%emt 0:00:05]} 52. Ke3 {[%emt 0:00:35]} Re1+ {[%emt 0:00:54]} 53. Kd4 {[%emt 0:00:25]} f2 {[%emt 0:01:08]} 54. Rg7+ {[%emt 0:01:06]} Kf3 {[%emt 0:00:44]} 55. Rf7+ {[%emt 0:00:08]} Ke2 {[%emt 0:00:12]} 56. Kc5 {[%emt 0:00:28]} Rc1+ {[%emt 0:00:57]} 57. Kd6 {[%emt 0:00:35]} Rd1+ {[%emt 0:00:09]} 58. Kc5 {[%emt 0:00:33]} f1=Q {[%emt 0:00:35]} 59. Rxf1 {[%emt 0:00:10]} Rxf1 {[%emt 0:00:10]} 60. b6 {[%emt 0:00:09]} Rf5+ {[%emt 0:00:45]} 61. Kc6 {[%emt 0:00:13]} Rf6+ {[%emt 0:00:13]} 62. Kc7 {[%emt 0:00:05]} Kd3 {[%emt 0:00:08]} 63. b7 {[%emt 0:00:15]} Rf7+ {[%emt 0:00:21]} 64. Kc8 {[%emt 0:00:04]} Rxb7 {[%emt 0:00:22]} 65. Kxb7 {[%emt 0:00:17]} 1/2-1/2

[Event "Czech Youth U12 Boys 2024"]
[Site "Kouty nad Desnou"]
[Date "2024.03.12"]
[Round "5.4"]
[White "Sochor, Vaclav"]
[Black "Kroulik, Stepan"]
[Result "1/2-1/2"]
[ECO "B21"]
[WhiteElo "1826"]
[BlackElo "1683"]
[Annotator "NA RC"]
[PlyCount "62"]
[EventDate "2024.03.10"]
[EventType "swiss"]
[EventCountry "CZE"]
[SourceTitle "playchess.com"]
[Source "ChessBase"]
[SourceQuality "1"]
[TimeControl "40/5400+30:1800+30"]

1. e4 {[%emt 0:00:06]} c5 {[%emt 0:00:04]} 2. d4 {[%emt 0:00:30]} cxd4 {[%emt 0:00:08]} 3. c3 {[%emt 0:00:46]} dxc3 {[%emt 0:00:17]} 4. Nxc3 {[%emt 0:00:44]} Nc6 {[%emt 0:00:34]} 5. Nf3 {[%emt 0:01:43]} a6 {[%emt 0:00:31]} 6. Bc4 {[%emt 0:00:40]} e6 {[%emt 0:00:23]} 7. O-O {[%emt 0:02:54]} Nge7 {[%emt 0:00:27]} 8. Qe2 {[%emt 0:01:42]} Ng6 {[%emt 0:00:31]} 9. Rd1 {[%emt 0:03:19]} Be7 {[%emt 0:00:56]} 10. a4 {[%emt 0:02:23]} O-O {[%emt 0:00:39] B21: Sicilian: 2 f4 and Morra Gambit.} 11. h3 {[%emt 0:06:03]} Qc7 {[%emt 0:00:30]} 12. Be3 {[%emt 0:02:36]} Rd8 {[%emt 0:05:34]} 13. Rac1 {[%emt 0:03:19]} Qb8 {[%emt 0:02:41]} 14. Bb3 {[%emt 0:08:55]} (14. Bb6 $15) 14... b6 {[%emt 0:08:19]} 15. Ne1 {[%emt 0:07:49]} Bc5 {[%emt 0:02:43]} 16. Nd3 {[%emt 0:06:47]} Nd4 {[%emt 0:02:57]} 17. Bxd4 {[%emt 0:00:07]} Bxd4 {[%emt 0:00:10]} 18. Nb4 {[%emt 0:01:49]} Bxc3 {[%emt 0:04:30]} (18... Bf6 $17 19. g3 b5 20. axb5 Be7) 19. Nc6 $1 {[%emt 0:05:37]} Qf4 $1 {[%emt 0:08:04]} (19... dxc6 $2 {perishes.} 20. Rxd8+ Nf8 21. bxc3 $18 (21. Rxc3 Qc7 $18)) ({But not} 19... Nf4 $2 20. Qf3 Be5 21. Nxb8 Rxb8 22. h4 $18) 20. Rxc3 {[%emt 0:00:45]} Re8 {[%emt 0:00:21]} 21. Rf3 {[%emt 0:02:58]} Qg5 {[%emt 0:01:08]} 22. Nb4 {[%emt 0:02:18]} Nf4 {[%emt 0:02:40]} 23. Qf1 {[%emt 0:00:51]} Bb7 {[%emt 0:03:24]} 24. g3 {[%emt 0:03:08]} e5 {[%emt 0:16:02] [#]} 25. Bd5 $2 {[%emt 0:07:50]} ({Better is} 25. Bxf7+ $1 $16 Kxf7 26. Rxd7+ Kg8 (26... Re7 27. Qc4+ Kf8 28. Rxe7 $18) 27. Rxb7) 25... Bxd5 {[%emt 0:01:03]} 26. Nxd5 {[%emt 0:00:10]} Nxd5 {[%emt 0:00:07]} 27. Rxd5 {[%emt 0:00:04]} Qe7 {[%emt 0:00:42]} 28. Qd3 {[%emt 0:03:04]} Ra7 {[%emt 0:00:43] [#]} (28... Red8 $14) 29. Rf5 {[%emt 0:01:54]} (29. Qb3 $1 $16 Raa8 30. Qxb6) 29... f6 $11 {[%emt 0:00:29]} 30. Qb3 {[%emt 0:02:46]} Qe6 {[%emt 0:01:10]} 31. Qd3 {[%emt 0:04:28]} Rc8 {[%emt 0:03:12]} 1/2-1/2

[Event "Czech Youth U12 Boys 2024"]
[Site "Kouty nad Desnou"]
[Date "2024.03.12"]
[Round "5.5"]
[White "Sotek, Matej"]
[Black "Kala, Jakub"]
[Result "0-1"]
[ECO "B12"]
[WhiteElo "1716"]
[BlackElo "1750"]
[Annotator "NA RC"]
[PlyCount "108"]
[EventDate "2024.03.10"]
[EventType "swiss"]
[EventCountry "CZE"]
[SourceTitle "playchess.com"]
[Source "ChessBase"]
[SourceQuality "1"]
[TimeControl "40/5400+30:1800+30"]

1. e4 {[%emt 0:00:03]} c6 {[%emt 0:00:09]} 2. d4 {[%emt 0:00:15]} d5 {[%emt 0:00:05]} 3. f3 {[%emt 0:00:19]} Qb6 {[%emt 0:00:31]} 4. c3 {[%emt 0:01:01]} e5 {[%emt 0:01:31]} 5. Qb3 {[%emt 0:03:05]} Qxb3 {[%emt 0:05:06]} 6. axb3 {[%emt 0:00:03]} dxe4 {[%emt 0:04:54]} 7. fxe4 {[%emt 0:00:11]} Nf6 {[%emt 0:02:37]} 8. Bd3 {[%emt 0:02:14]} exd4 {[%emt 0:01:41]} 9. cxd4 {[%emt 0:01:45]} Be6 {[%emt 0:02:56]} 10. Nd2 {[%emt 0:02:42]} Bb4 {[%emt 0:01:48]} 11. Ngf3 {[%emt 0:02:05]} Bxb3 {[%emt 0:14:45]} 12. O-O Be6 {[%emt 0:01:23]} 13. Ng5 {[%emt 0:06:26]} Nbd7 {[%emt 0:02:29]} 14. e5 {[%emt 0:02:48]} Ng4 {[%emt 0:06:15]} 15. h3 {[%emt 0:08:01]} Ne3 {[%emt 0:01:48]} 16. Rf3 {[%emt 0:01:37]} Bxd2 {[%emt 0:01:56]} 17. Bxd2 {[%emt 0:05:17]} Nc4 {[%emt 0:01:26]} 18. Nxe6 {[%emt 0:01:06]} Nxd2 {[%emt 0:01:01]} 19. Nc7+ {[%emt 0:00:11]} Ke7 {[%emt 0:03:01]} 20. Nxa8 {[%emt 0:00:41]} Nxf3+ {[%emt 0:00:08]} 21. gxf3 {[%emt 0:00:02]} Rxa8 {[%emt 0:00:14]} 22. f4 {[%emt 0:02:27]} h6 {[%emt 0:01:15]} 23. Kf2 {[%emt 0:01:24]} f6 {[%emt 0:11:00]} 24. Rg1 {[%emt 0:00:57]} g5 {[%emt 0:03:00]} 25. h4 {[%emt 0:08:10]} gxf4 {[%emt 0:05:56]} 26. Rg7+ {[%emt 0:00:29]} Ke6 {[%emt 0:04:28]} 27. Bc4+ {[%emt 0:00:42]} Kf5 {[%emt 0:00:33]} 28. e6 {[%emt 0:05:08]} Nb6 {[%emt 0:01:51]} 29. Bb3 {[%emt 0:03:46]} Nd5 {[%emt 0:00:38]} 30. Rxb7 {[%emt 0:02:24]} Kxe6 {[%emt 0:00:44]} 31. Rh7 {[%emt 0:01:32]} Rb8 {[%emt 0:04:02]} 32. Bxd5+ {[%emt 0:00:09]} Kxd5 {[%emt 0:01:06]} 33. Rxh6 {[%emt 0:00:08]} Rxb2+ {[%emt 0:01:30]} 34. Kf3 {[%emt 0:01:05]} Kxd4 {[%emt 0:00:37]} 35. Rxf6 {[%emt 0:00:35]} c5 {[%emt 0:01:10]} 36. Rxf4+ {[%emt 0:00:19]} Kc3 {[%emt 0:00:09]} 37. Ra4 {[%emt 0:00:43]} Rb7 {[%emt 0:01:16]} 38. Ra3+ {[%emt 0:02:44]} Kb2 {[%emt 0:02:06]} 39. Ra4 {[%emt 0:00:44]} Kb3 {[%emt 0:00:58]} 40. Ra1 {[%emt 0:00:27]} Rg7 {[%emt 0:00:22]} 41. Ke3 {[%emt 0:32:56]} c4 {[%emt 0:31:38]} 42. Rb1+ {[%emt 0:02:46]} Kc2 {[%emt 0:00:55]} 43. Rb5 {[%emt 0:00:13]} c3 {[%emt 0:01:21]} 44. h5 {[%emt 0:01:17]} Kc1 {[%emt 0:01:10]} 45. Kd3 {[%emt 0:00:58]} c2 {[%emt 0:00:37]} 46. h6 {[%emt 0:01:07]} Rd7+ {[%emt 0:00:24]} 47. Ke2 {[%emt 0:00:35]} Re7+ {[%emt 0:00:05]} 48. Kf2 {[%emt 0:02:27]} Rh7 {[%emt 0:00:21]} 49. Rh5 {[%emt 0:02:00]} Rxh6 {[%emt 0:01:24]} 50. Rxh6 {[%emt 0:00:46]} Kb1 {[%emt 0:00:06]} 51. Rh1+ {[%emt 0:00:32]} c1=Q {[%emt 0:00:07]} 52. Rxc1+ {[%emt 0:00:06]} Kxc1 {[%emt 0:00:03]} 53. Ke3 {[%emt 0:00:09]} a5 {[%emt 0:00:32]} 54. Kd4 {[%emt 0:00:18]} Kb2 {[%emt 0:00:18]} 0-1

[Event "Czech Youth U12 Boys 2024"]
[Site "Kouty nad Desnou"]
[Date "2024.03.12"]
[Round "5.6"]
[White "Hladky, Mikulas"]
[Black "Havlik, David"]
[Result "1-0"]
[ECO "A09"]
[WhiteElo "1798"]
[BlackElo "1580"]
[Annotator "NA RC"]
[PlyCount "107"]
[EventDate "2024.03.10"]
[EventType "swiss"]
[EventCountry "CZE"]
[SourceTitle "playchess.com"]
[Source "ChessBase"]
[SourceQuality "1"]
[TimeControl "40/5400+30:1800+30"]

1. Nf3 {[%emt 0:00:17]} d5 {[%emt 0:00:11]} 2. c4 {[%emt 0:00:20]} d4 {[%emt 0:00:03]} 3. b4 {[%emt 0:00:16]} f6 {[%emt 0:04:08]} 4. e3 {[%emt 0:02:11]} e5 {[%emt 0:07:27]} 5. Qb3 {[%emt 0:08:33]} Be6 {[%emt 0:07:31]} 6. Bb2 {[%emt 0:02:44]} dxe3 {[%emt 0:10:30]} 7. dxe3 {[%emt 0:06:26]} Nd7 {[%emt 0:07:19]} 8. Nc3 {[%emt 0:05:50]} c5 {[%emt 0:03:28]} 9. b5 {[%emt 0:01:43]} Ne7 {[%emt 0:10:55]} 10. Rd1 {[%emt 0:01:24]} Qc7 {[%emt 0:07:56]} 11. Nd2 {[%emt 0:09:32]} f5 {[%emt 0:06:37]} 12. Nd5 {[%emt 0:01:25]} Nxd5 {[%emt 0:04:49]} 13. cxd5 {[%emt 0:00:27]} Bf7 {[%emt 0:00:26]} 14. Nc4 {[%emt 0:01:58]} Bd6 {[%emt 0:01:46]} 15. Qc3 {[%emt 0:08:26]} Nf6 {[%emt 0:08:52]} 16. Nxd6+ {[%emt 0:05:49]} Qxd6 {[%emt 0:02:27]} 17. Bc4 {[%emt 0:04:53]} Nd7 {[%emt 0:04:30]} 18. h4 {[%emt 0:04:59]} O-O-O {[%emt 0:02:09]} 19. Bb3 {[%emt 0:04:37]} Bh5 {[%emt 0:01:47]} 20. Rc1 {[%emt 0:02:22]} f4 {[%emt 0:01:59]} 21. e4 {[%emt 0:00:39]} Qg6 {[%emt 0:00:45]} 22. Qc4 {[%emt 0:06:39]} b6 {[%emt 0:02:41]} 23. Rg1 {[%emt 0:02:11]} Nf6 {[%emt 0:02:54]} 24. Bc2 {[%emt 0:03:01]} Rhe8 {[%emt 0:00:40]} 25. a4 {[%emt 0:02:30]} Bf3 {[%emt 0:00:33]} 26. gxf3 {[%emt 0:00:58]} Qxg1+ {[%emt 0:00:05]} 27. Ke2 {[%emt 0:00:09]} Qg6 {[%emt 0:00:30]} 28. a5 {[%emt 0:00:39]} Rd7 {[%emt 0:00:44]} 29. axb6 {[%emt 0:00:28]} axb6 {[%emt 0:00:11]} 30. Ra1 {[%emt 0:00:27]} Kd8 {[%emt 0:00:50]} 31. Ra8+ {[%emt 0:00:26]} Ke7 {[%emt 0:00:07]} 32. Rxe8+ {[%emt 0:00:17]} Kxe8 {[%emt 0:00:43]} 33. Bxe5 {[%emt 0:00:19]} Nh5 {[%emt 0:00:42]} 34. d6 {[%emt 0:04:21]} Qf7 {[%emt 0:00:31]} 35. Qxf7+ {[%emt 0:01:43]} Kxf7 {[%emt 0:00:05]} 36. Bb3+ {[%emt 0:00:45]} Ke8 {[%emt 0:00:30]} 37. Kd3 {[%emt 0:00:33]} Ra7 {[%emt 0:00:52]} 38. Bb2 {[%emt 0:01:57]} Nf6 39. e5 {[%emt 0:00:18]} Nd7 {[%emt 0:01:04]} 40. Ke4 {[%emt 0:01:08]} c4 {[%emt 0:00:23]} 41. Bxc4 {[%emt 0:30:30]} Ra4 {[%emt 0:30:09]} 42. Kd5 {[%emt 0:02:08]} Rb4 {[%emt 0:00:44]} 43. Bc3 {[%emt 0:01:42]} Rb1 {[%emt 0:00:15]} 44. Bd4 {[%emt 0:02:57]} Rd1 {[%emt 0:00:36]} 45. Ke4 {[%emt 0:00:28]} Nc5+ {[%emt 0:00:25]} 46. Bxc5 {[%emt 0:00:55]} bxc5 {[%emt 0:00:04]} 47. Kf5 {[%emt 0:00:29]} Rd4 {[%emt 0:00:32]} 48. Bg8 {[%emt 0:01:02]} c4 {[%emt 0:00:52]} 49. Bxh7 {[%emt 0:00:11]} c3 {[%emt 0:00:29]} 50. Ke6 {[%emt 0:00:54]} Rd2 {[%emt 0:00:45]} 51. Bg6+ {[%emt 0:00:09]} Kd8 {[%emt 0:00:07]} 52. b6 {[%emt 0:00:29]} Rb2 {[%emt 0:00:25]} 53. Kf7 {[%emt 0:00:15]} Rxf2 {[%emt 0:01:12]} 54. e6 {[%emt 0:00:17]} 1-0